fUST/lending_fUST_20240424
["ID","MTS","AMOUNT","RATE_DAILY","PERIOD"]
[323368980,1713935271277,-2445.93,0.00016986,2]
[323368981,1713935271301,-750.41,0.00016986,2]
[323368982,1713935271328,-912.35,0.00016986,2]
[323368983,1713935271355,-917.49,0.00016986,2]
[323368984,1713935271377,-1852.0,0.00016986,2]
[323368985,1713935271398,-1110.13,0.00016986,2]
[323368986,1713935271419,-500.0,0.00016986,2]
[323368987,1713935271440,-500.0,0.00016986,2]
[323368988,1713935271461,-500.0,0.00016986,2]
[323368989,1713935271482,-500.0,0.00016986,2]
[323368990,1713935271503,-500.0,0.00016986,2]
[323368991,1713935271524,-2470.33,0.00016986,2]
[323368992,1713935271545,-825.43,0.00016986,2]
[323368993,1713935271571,-16194.17,0.00016986,2]
[323368994,1713935271593,-635.72,0.00016986,2]
[323368995,1713935271615,-567.11,0.00016986,2]
[323368996,1713935271637,-500.0,0.00016986,2]
[323368997,1713935271657,-500.0,0.00016986,2]
[323368998,1713935271678,-500.0,0.00016986,2]
[323368999,1713935271698,-500.0,0.00016986,2]
[323369000,1713935271718,-500.0,0.00016986,2]
[323369001,1713935271739,-1196.5,0.00016986,2]
[323369002,1713935271763,-1009.45,0.00016986,2]
[323369003,1713935271785,-500.0,0.00016986,2]
[323369004,1713935271806,-569.56,0.00016986,2]
[323369005,1713935271830,-500.0,0.00016986,2]
[323369006,1713935271851,-504.43,0.00016986,2]
[323369007,1713935271871,-679.387019,0.00016986,2]
[323369008,1713935271891,-1058.588626,0.00016986,2]
[323369009,1713935271911,-500.0,0.00016986,2]
[323369010,1713935271931,-679.387019,0.00016986,2]
[323369011,1713935271953,-1058.588626,0.00016986,2]
[323369012,1713935271974,-679.387019,0.00016986,2]
[323369013,1713935271994,-1058.588626,0.00016986,2]
[323369014,1713935272016,-679.387019,0.00016986,2]
[323369015,1713935272035,-1058.588626,0.00016986,2]
[323369016,1713935272055,-679.387019,0.00016986,2]
[323369017,1713935272187,-1058.588626,0.00016986,2]
[323369018,1713935272209,-679.387019,0.00016986,2]
[323369019,1713935272230,-852.23,0.00016986,2]
[323369020,1713935272250,-1058.588626,0.00016986,2]
[323369021,1713935272270,-500.0,0.00016986,2]
[323369022,1713935272290,-500.0,0.00016986,2]
[323369023,1713935272310,-151.0,0.00016986,2]
[323369024,1713935272336,-151.0,0.00016986,2]
[323369025,1713935272356,-151.0,0.00016986,2]
[323369026,1713935272377,-1808.61,0.00016986,2]
[323369027,1713935272399,-13956.77,0.00016986,2]
[323369028,1713935272418,-1616.98,0.00016986,2]
[323369029,1713935272439,-500.0,0.00016986,2]
[323369030,1713935272460,-500.0,0.00016986,2]
[323369031,1713935272481,-500.0,0.00016986,2]
[323369032,1713935272502,-23082.59,0.00016986,2]
[323369033,1713935272522,-238.63874478,0.00016986,2]
[323369034,1713935272543,-151.0,0.00016986,2]
[323369035,1713935272566,-500.0,0.00016986,2]
[323369036,1713935272586,-151.0,0.00016986,2]
[323369037,1713935272605,-151.0,0.00016986,2]
[323369038,1713935272626,-500.0,0.00016986,2]
[323369039,1713935272646,-500.0,0.00016986,2]
[323369040,1713935272666,-500.0,0.00016986,2]
[323369041,1713935272686,-1123.08,0.00016986,2]
[323369042,1713935272709,-2249.05,0.00016986,2]
[323369043,1713935272729,-1327.5,0.00016986,2]
[323369044,1713935272749,-500.0,0.00016986,2]
[323369045,1713935272770,-1674.12,0.00016986,2]
[323369046,1713935272793,-2056.7,0.00016986,2]
[323369047,1713935272818,-151.0,0.00016986,2]
[323369048,1713935272838,-151.0,0.00016986,2]
[323369049,1713935272861,-151.0,0.00016986,2]
[323369050,1713935272882,-153.0,0.000171,2]
[323369051,1713935272905,-153.0,0.000171,2]
[323369052,1713935272927,-153.0,0.000171,2]
[323369053,1713935272948,-153.0,0.000171,2]
[323369054,1713935272967,-153.0,0.0001715,2]
[323369055,1713935272989,-153.0,0.0001715,2]
[323369056,1713935273011,-587.0,0.000172,2]
[323369057,1713935273038,-153.0,0.00017249,2]
[323369058,1713935273058,-153.0,0.00017249,2]
[323369059,1713935273080,-1072.29,0.0001726,2]
[323369060,1713935273101,-500.0,0.0001726,2]
[323369061,1713935273122,-500.0,0.0001726,2]
[323369062,1713935273142,-553.98,0.0001726,2]
[323369063,1713935273166,-505.51914123,0.0001726,2]
[323369064,1713935273187,-740.36,0.0001726,2]
[323369065,1713935273208,-818.64,0.0001726,2]
[323369066,1713935273228,-694.42,0.0001726,2]
[323369067,1713935273251,-500.0,0.0001726,2]
[323369068,1713935273272,-500.0,0.0001726,2]
[323369069,1713935273293,-500.0,0.0001726,2]
[323369070,1713935273314,-500.0,0.0001726,2]
[323369071,1713935273335,-500.0,0.0001726,2]
[323369072,1713935273356,-1039.44,0.0001726,2]
[323369073,1713935273377,-500.0,0.0001726,2]
[323369074,1713935273397,-500.0,0.0001726,2]
[323369075,1713935273417,-500.0,0.0001726,2]
[323369076,1713935273437,-500.0,0.0001726,2]
[323369077,1713935273458,-500.0,0.0001726,2]
[323369078,1713935273478,-500.0,0.0001726,2]
[323369079,1713935273500,-500.0,0.0001726,2]
[323369080,1713935273522,-706.26,0.0001726,2]
[323369081,1713935273541,-500.0,0.0001726,2]
[323369082,1713935273564,-500.0,0.0001726,2]
[323369083,1713935273588,-500.0,0.0001726,2]
[323369084,1713935273609,-174.55481657,0.0001726,2]
[323369085,1713935273629,-500.0,0.0001726,2]
[323369086,1713935273649,-690.3,0.0001726,2]
[323369087,1713935273668,-500.0,0.0001726,2]
[323369088,1713935273689,-276.67371471,0.0001726,2]
[323369089,1713935273708,-923.86,0.0001726,2]
[323369090,1713935273728,-1694.19,0.0001726,2]
[323369091,1713935273749,-500.0,0.0001726,2]
[323369092,1713935273773,-1248.72,0.0001726,2]
[323369093,1713935273796,-1841.73,0.0001726,2]
[323369094,1713935273818,-621.02,0.0001726,2]
[323369095,1713935273839,-500.0,0.0001726,2]
[323369096,1713935273860,-500.0,0.0001726,2]
[323369097,1713935273880,-500.0,0.0001726,2]
[323369098,1713935273900,-589.94,0.0001726,2]
[323369099,1713935273920,-500.0,0.0001726,2]
[323369100,1713935273942,-500.0,0.0001726,2]
[323369101,1713935273963,-500.0,0.0001726,2]
[323369102,1713935273985,-500.0,0.0001726,2]
[323369103,1713935274005,-758.5,0.0001726,2]
[323369104,1713935274026,-500.0,0.0001726,2]
[323369105,1713935274047,-605.075594,0.0001726,2]
[323369106,1713935274069,-605.075594,0.0001726,2]
[323369107,1713935274089,-1498.56,0.0001726,2]
[323369108,1713935274110,-500.0,0.0001726,2]
[323369109,1713935274131,-605.075594,0.0001726,2]
[323369110,1713935274153,-605.075594,0.0001726,2]
[323369111,1713935274177,-500.0,0.0001726,2]
[323369112,1713935274197,-500.0,0.0001726,2]
[323369113,1713935274346,-1949.83,0.0001726,2]
[323369114,1713935274367,-500.0,0.0001726,2]
[323369115,1713935274387,-334.67040565,0.0001726,2]
[323369116,1713935274408,-500.0,0.0001726,2]
[323369117,1713935274429,-997.16,0.0001726,2]
[323369118,1713935274449,-151.0,0.0001726,2]
[323369119,1713935274470,-151.0,0.0001726,2]
[323369120,1713935274490,-596.73,0.0001726,2]
[323369121,1713935274511,-500.0,0.0001726,2]
[323369122,1713935274532,-1289.53,0.0001726,2]
[323369123,1713935274553,-500.0,0.0001726,2]
[323369124,1713935274575,-151.0,0.0001726,2]
[323369125,1713935274597,-151.0,0.0001726,2]
[323369126,1713935274619,-730.34,0.0001726,2]
[323369127,1713935274641,-973.07,0.0001726,2]
[323369128,1713935274667,-500.0,0.0001726,2]
[323369129,1713935274689,-500.0,0.0001726,2]
[323369130,1713935274710,-500.0,0.0001726,2]
[323369131,1713935274731,-500.0,0.0001726,2]
[323369132,1713935274752,-522.63,0.0001726,2]
[323369133,1713935274772,-500.0,0.0001726,2]
[323369134,1713935274794,-500.0,0.0001726,2]
[323369135,1713935274816,-839.26,0.0001726,2]
[323369136,1713935274839,-1348.23,0.0001726,2]
[323369137,1713935274860,-500.0,0.0001726,2]
[323369138,1713935274881,-500.0,0.0001726,2]
[323369139,1713935274903,-691.98,0.0001726,2]
[323369140,1713935274924,-500.0,0.0001726,2]
[323369141,1713935274944,-537.934341,0.0001726,2]
[323369142,1713935274966,-537.934341,0.0001726,2]
[323369143,1713935274987,-1066.81,0.0001726,2]
[323369144,1713935275007,-500.0,0.0001726,2]
[323369145,1713935275032,-537.934341,0.0001726,2]
[323369146,1713935275053,-537.934341,0.0001726,2]
[323369147,1713935275075,-500.0,0.0001726,2]
[323369148,1713935275095,-500.0,0.0001726,2]
[323369149,1713935275116,-500.0,0.0001726,2]
[323369150,1713935275136,-500.0,0.0001726,2]
[323369151,1713935275157,-3172.22,0.0001726,2]
[323369152,1713935275180,-1036.52,0.0001726,2]
[323369153,1713935275200,-500.0,0.0001726,2]
[323369154,1713935275221,-500.0,0.0001726,2]
[323369155,1713935275243,-501.13490122,0.0001726,2]
[323369156,1713935275264,-671.94,0.0001726,2]
[323369157,1713935275284,-500.0,0.0001726,2]
[323369158,1713935275305,-751.87,0.0001726,2]
[323369159,1713935275327,-1218.58,0.0001726,2]
[323369160,1713935275347,-525.05,0.0001726,2]
[323369161,1713935275367,-500.0,0.0001726,2]
[323369162,1713935275389,-500.0,0.0001726,2]
[323369163,1713935275410,-500.0,0.0001726,2]
[323369164,1713935275430,-500.0,0.0001726,2]
[323369165,1713935275452,-500.0,0.0001726,2]
[323369166,1713935275473,-500.0,0.0001726,2]
[323369167,1713935275493,-1479.58,0.0001726,2]
[323369168,1713935275515,-1952.31,0.0001726,2]
[323369169,1713935275537,-1102.42,0.0001726,2]
[323369170,1713935275557,-500.0,0.0001726,2]
[323369171,1713935275579,-575.37211627,0.0001726,2]
[323369172,1713935275599,-500.0,0.0001726,2]
[323369173,1713935275621,-500.0,0.0001726,2]
[323369174,1713935275641,-510.84,0.0001726,2]
[323369175,1713935275660,-881.19,0.0001726,2]
[323369176,1713935275681,-500.0,0.0001726,2]
[323369177,1713935275702,-500.0,0.0001726,2]
[323369178,1713935275724,-500.0,0.0001726,2]
[323369179,1713935275744,-500.0,0.0001726,2]
[323369180,1713935275765,-151.0,0.0001726,2]
[323369181,1713935275786,-151.0,0.0001726,2]
[323369182,1713935275806,-500.0,0.0001726,2]
[323369183,1713935275830,-2418.65555,0.0001726,2]
[323369184,1713935275851,-2418.65555,0.0001726,2]
[323369185,1713935275873,-500.0,0.0001726,2]
[323369186,1713935275894,-2418.65555,0.0001726,2]
[323369187,1713935275916,-2418.65555,0.0001726,2]
[323369188,1713935275936,-911.45,0.0001726,2]
[323369189,1713935275957,-500.0,0.0001726,2]
[323369190,1713935275979,-500.0,0.0001726,2]
[323369191,1713935275999,-707.111063,0.0001726,2]
[323369192,1713935276020,-707.111063,0.0001726,2]
[323369193,1713935276041,-707.111063,0.0001726,2]
[323369194,1713935276061,-707.111063,0.0001726,2]
[323369195,1713935276084,-570.10101942,0.0001726,2]
[323369196,1713935276105,-1043.252585,0.0001726,2]
[323369197,1713935276125,-1043.252585,0.0001726,2]
[323369198,1713935276148,-883.14,0.0001726,2]
[323369199,1713935276171,-1043.252585,0.0001726,2]
[323369200,1713935276191,-1043.252585,0.0001726,2]
[323369201,1713935276212,-605.94,0.0001726,2]
[323369202,1713935276233,-500.0,0.0001726,2]
[323369203,1713935276255,-500.0,0.0001726,2]
[323369204,1713935276275,-500.0,0.0001726,2]
[323369205,1713935276400,-1958.73,0.0001726,2]
[323369206,1713935276422,-500.0,0.0001726,2]
[323369207,1713935276442,-5668.462252,0.0001726,2]
[323369208,1713935276462,-576.55008624,0.0001726,2]
[323369209,1713935276483,-5668.462252,0.0001726,2]
[323369210,1713935276503,-5668.462252,0.0001726,2]
[323369211,1713935276522,-500.0,0.0001726,2]
[323369212,1713935276544,-5668.462252,0.0001726,2]
[323369213,1713935276566,-11025.96,0.0001726,2]
[323369214,1713935276587,-553.93,0.0001726,2]
[323369215,1713935276608,-500.0,0.0001726,2]
[323369216,1713935276629,-500.0,0.0001726,2]
[323369217,1713935276653,-500.0,0.0001726,2]
[323369218,1713935276675,-586.01,0.0001726,2]
[323369219,1713935276695,-1763.73,0.0001726,2]
[323369220,1713935276715,-500.0,0.0001726,2]
[323369221,1713935276736,-611.81,0.0001726,2]
[323369222,1713935276759,-500.0,0.0001726,2]
[323369223,1713935276781,-500.0,0.0001726,2]
[323369224,1713935276803,-1127.24,0.0001726,2]
[323369225,1713935276825,-196.08637045,0.0001726,2]
[323369226,1713935276846,-503.27683505,0.0001726,2]
[323369227,1713935276867,-548.44901264,0.0001726,2]
[323369228,1713935276888,-7870.47,0.0001726,2]
[323369229,1713935276911,-7540.72,0.0001726,2]
[323369230,1713935276934,-500.0,0.0001726,2]
[323369231,1713935276956,-1561.93,0.0001726,2]
[323369232,1713935276979,-500.0,0.0001726,2]
[323369233,1713935277005,-500.0,0.0001726,2]
[323369234,1713935277029,-500.0,0.0001726,2]
[323369235,1713935277058,-500.0,0.0001726,2]
[323369236,1713935277082,-576.29,0.0001726,2]
[323369237,1713935277106,-500.0,0.0001726,2]
[323369238,1713935277131,-500.0,0.0001726,2]
[323369239,1713935277156,-10223.44,0.0001726,2]
[323369240,1713935277179,-580.12,0.0001726,2]
[323369241,1713935277201,-500.0,0.0001726,2]
[323369242,1713935277223,-500.0,0.0001726,2]
[323369243,1713935277246,-987.19,0.0001726,2]
[323369244,1713935277268,-561.7,0.0001726,2]
[323369245,1713935277289,-1321.5,0.0001726,2]
[323369246,1713935277312,-1218.59,0.0001726,2]
[323369247,1713935277336,-500.0,0.0001726,2]
[323369248,1713935277358,-500.0,0.0001726,2]
[323369249,1713935277379,-500.0,0.0001726,2]
[323369250,1713935277401,-959.71,0.0001726,2]
[323369251,1713935277422,-911.47,0.0001726,2]
[323369252,1713935277443,-500.0,0.0001726,2]
[323369253,1713935277467,-3785.66,0.0001726,2]
[323369254,1713935277491,-7304.86,0.0001726,2]
[323369255,1713935277513,-500.0,0.0001726,2]
[323369256,1713935277534,-69.93086413,0.0001726,2]
[323369257,1713935338012,-938.69803003,0.00015876,2]
[323369258,1713935338044,-265.219801,0.00015877,2]
[323369259,1713935338076,-268.16433794,0.00016337,2]
[323369260,1713935346090,-300.0,0.00014728,2]
[323369261,1713935378201,-420.0,0.00016201,2]
[323369262,1713935378254,-196.28685456,0.00016336,2]
[323369265,1713935400619,300.0,0.00014728,2]
[323369340,1713935432407,-938.69803003,0.000162,2]
[323369341,1713935432417,-420.0,0.00016201,2]
[323369342,1713935432426,-300.0,0.00016337,2]
[323369343,1713935432435,-44444.0,0.00016338,2]
[323369344,1713935432445,-168.3457265,0.00016437,2]
[323369345,1713935432455,-27731.90256347,0.00016437,2]
[323369346,1713935432467,-207606.48219,0.00016437,2]
[323369367,1713935438251,-168810.80972058,0.00016437,2]
[323369374,1713935438309,-5889.44857215,0.00016437,2]
[323369376,1713935438319,-228.63506504,0.00016438,2]
[323369378,1713935438329,-500.0,0.00016438,2]
[323369380,1713935438338,-500.0,0.00016438,2]
[323369382,1713935438348,-1624.86,0.00016438,2]
[323369383,1713935438357,-8519.54,0.00016438,2]
[323369384,1713935438366,-810.89,0.00016438,2]
[323369385,1713935438376,-500.0,0.00016438,2]
[323369386,1713935438385,-500.0,0.00016438,2]
[323369387,1713935438394,-1248.8,0.00016438,2]
[323369388,1713935438404,-500.0,0.00016438,2]
[323369389,1713935438413,-1015.49,0.00016438,2]
[323369390,1713935438422,-1101.25,0.00016438,2]
[323369391,1713935438432,-501.78339334,0.00016438,2]
[323369392,1713935438441,-759.56,0.00016438,2]
[323369393,1713935438450,-500.0,0.00016438,2]
[323369394,1713935438460,-500.0,0.00016438,2]
[323369395,1713935438470,-500.0,0.00016438,2]
[323369397,1713935438479,-500.0,0.00016438,2]
[323369399,1713935438489,-500.0,0.00016438,2]
[323369401,1713935438498,-6087.38,0.00016438,2]
[323369403,1713935438507,-500.0,0.00016438,2]
[323369405,1713935438517,-500.0,0.00016438,2]
[323369407,1713935438527,-501.80453127,0.00016438,2]
[323369409,1713935438535,-866.2,0.00016438,2]
[323369411,1713935438545,-1123.53,0.00016438,2]
[323369413,1713935438554,-6024.2,0.00016438,2]
[323369415,1713935438564,-500.0,0.00016438,2]
[323369417,1713935438573,-504.45,0.00016438,2]
[323369418,1713935438583,-3154.71,0.00016438,2]
[323369419,1713935438591,-500.0,0.00016438,2]
[323369420,1713935438601,-4501.59,0.00016438,2]
[323369421,1713935438609,-500.0,0.00016438,2]
[323369422,1713935438618,-500.0,0.00016438,2]
[323369423,1713935438627,-1336.09,0.00016438,2]
[323369424,1713935438636,-500.0,0.00016438,2]
[323369425,1713935438646,-560.85,0.00016438,2]
[323369426,1713935438655,-798.31,0.00016438,2]
[323369427,1713935438664,-500.0,0.00016438,2]
[323369428,1713935438674,-608.62,0.00016438,2]
[323369429,1713935438683,-500.0,0.00016438,2]
[323369430,1713935438692,-1237.7,0.00016438,2]
[323369431,1713935438701,-2094.64,0.00016438,2]
[323369432,1713935438711,-1074.61,0.00016438,2]
[323369433,1713935438720,-500.0,0.00016438,2]
[323369434,1713935438728,-588.55,0.00016438,2]
[323369435,1713935438738,-699.38,0.00016438,2]
[323369436,1713935438747,-1620.5,0.00016438,2]
[323369437,1713935438756,-802.81,0.00016438,2]
[323369438,1713935438765,-500.0,0.00016438,2]
[323369439,1713935438775,-656.61,0.00016438,2]
[323369440,1713935438784,-500.0,0.00016438,2]
[323369441,1713935438793,-576.65,0.00016438,2]
[323369442,1713935438803,-500.0,0.00016438,2]
[323369443,1713935438812,-500.0,0.00016438,2]
[323369444,1713935438821,-466.6483388,0.00016438,2]
[323369445,1713935438830,-500.0,0.00016438,2]
[323369446,1713935438839,-14169.9,0.00016438,2]
[323369447,1713935438849,-2161.53,0.00016438,2]
[323369448,1713935438858,-575.25,0.00016438,2]
[323369449,1713935438867,-500.0,0.00016438,2]
[323369450,1713935438876,-556.25,0.00016438,2]
[323369451,1713935438885,-500.0,0.00016438,2]
[323369452,1713935438894,-745.7,0.00016438,2]
[323369453,1713935438904,-500.0,0.00016438,2]
[323369454,1713935438913,-1046.94,0.00016438,2]
[323369455,1713935438922,-500.0,0.00016438,2]
[323369456,1713935438936,-500.0,0.00016438,2]
[323369457,1713935438945,-12331.76,0.00016438,2]
[323369458,1713935438954,-883.27,0.00016438,2]
[323369459,1713935438965,-500.0,0.00016438,2]
[323369460,1713935438974,-500.0,0.00016438,2]
[323369461,1713935438983,-20197.27,0.00016438,2]
[323369462,1713935438993,-272.61360926,0.000165,2]
[323369463,1713935439002,-93926.62607308,0.0001671,2]
[323369464,1713935439012,-151.0,0.00016712,2]
[323369465,1713935439021,-151.0,0.00016712,2]
[323369466,1713935439030,-300.974068,0.00016712,2]
[323369467,1713935439039,-151.0,0.00016712,2]
[323369468,1713935439051,-151.0,0.00016712,2]
[323369469,1713935439060,-151.0,0.00016712,2]
[323369470,1713935439069,-151.0,0.00016712,2]
[323369471,1713935439078,-500.0,0.00016712,2]
[323369472,1713935439088,-1624.86,0.00016712,2]
[323369473,1713935439097,-8519.54,0.00016712,2]
[323369474,1713935439106,-810.89,0.00016712,2]
[323369475,1713935439114,-500.0,0.00016712,2]
[323369476,1713935439124,-386.12656123,0.00016712,2]
[323369477,1713935439133,-1248.8,0.00016712,2]
[323369478,1713935439142,-500.0,0.00016712,2]
[323369479,1713935439151,-1015.49,0.00016712,2]
[323369480,1713935439160,-1101.25,0.00016712,2]
[323369481,1713935439169,-759.56,0.00016712,2]
[323369482,1713935439179,-500.0,0.00016712,2]
[323369483,1713935439188,-500.0,0.00016712,2]
[323369484,1713935439199,-500.0,0.00016712,2]
[323369485,1713935439209,-500.0,0.00016712,2]
[323369486,1713935439223,-500.0,0.00016712,2]
[323369487,1713935439231,-6087.38,0.00016712,2]
[323369488,1713935439240,-500.0,0.00016712,2]
[323369489,1713935439250,-483.59673647,0.00016712,2]
[323369490,1713935439259,-866.2,0.00016712,2]
[323369491,1713935439268,-1123.53,0.00016712,2]
[323369492,1713935439277,-6024.2,0.00016712,2]
[323369493,1713935439287,-500.0,0.00016712,2]
[323369494,1713935439299,-504.45,0.00016712,2]
[323369495,1713935439309,-3154.71,0.00016712,2]
[323369496,1713935439319,-500.0,0.00016712,2]
[323369497,1713935439328,-4501.59,0.00016712,2]
[323369498,1713935439337,-500.0,0.00016712,2]
[323369499,1713935439347,-500.0,0.00016712,2]
[323369500,1713935439356,-1336.09,0.00016712,2]
[323369501,1713935439365,-500.0,0.00016712,2]
[323369502,1713935439374,-560.85,0.00016712,2]
[323369503,1713935439383,-798.31,0.00016712,2]
[323369504,1713935439392,-500.0,0.00016712,2]
[323369505,1713935439401,-608.62,0.00016712,2]
[323369506,1713935439410,-293.87697452,0.00016712,2]
[323369507,1713935439419,-1237.7,0.00016712,2]
[323369508,1713935439429,-1074.61,0.00016712,2]
[323369509,1713935439438,-2094.64,0.00016712,2]
[323369510,1713935439447,-500.0,0.00016712,2]
[323369511,1713935439457,-588.55,0.00016712,2]
[323369512,1713935439467,-699.38,0.00016712,2]
[323369513,1713935439476,-1620.5,0.00016712,2]
[323369514,1713935439485,-802.81,0.00016712,2]
[323369515,1713935439495,-500.0,0.00016712,2]
[323369516,1713935439505,-656.61,0.00016712,2]
[323369517,1713935439514,-576.65,0.00016712,2]
[323369518,1713935439523,-500.0,0.00016712,2]
[323369519,1713935439533,-500.0,0.00016712,2]
[323369520,1713935439542,-500.0,0.00016712,2]
[323369521,1713935439552,-500.0,0.00016712,2]
[323369522,1713935439561,-14169.9,0.00016712,2]
[323369523,1713935439570,-2161.53,0.00016712,2]
[323369524,1713935439580,-575.25,0.00016712,2]
[323369525,1713935439589,-500.0,0.00016712,2]
[323369526,1713935439598,-556.25,0.00016712,2]
[323369527,1713935439608,-500.0,0.00016712,2]
[323369528,1713935439617,-745.7,0.00016712,2]
[323369529,1713935439627,-500.0,0.00016712,2]
[323369530,1713935439636,-1046.94,0.00016712,2]
[323369531,1713935439645,-500.0,0.00016712,2]
[323369532,1713935439655,-500.0,0.00016712,2]
[323369533,1713935439664,-12331.76,0.00016712,2]
[323369534,1713935439673,-883.27,0.00016712,2]
[323369535,1713935439682,-500.0,0.00016712,2]
[323369536,1713935439691,-500.0,0.00016712,2]
[323369537,1713935439700,-20197.27,0.00016712,2]
[323369538,1713935439710,-151.0,0.00016986,2]
[323369539,1713935439720,-151.0,0.00016986,2]
[323369540,1713935439729,-151.0,0.00016986,2]
[323369541,1713935439738,-151.0,0.00016986,2]
[323369542,1713935439747,-151.0,0.00016986,2]
[323369544,1713935439757,-158.333189,0.00016986,2]
[323369546,1713935439766,-500.0,0.00016986,2]
[323369547,1713935439776,-1624.86,0.00016986,2]
[323369548,1713935439785,-8519.54,0.00016986,2]
[323369549,1713935439794,-500.0,0.00016986,2]
[323369550,1713935439804,-810.89,0.00016986,2]
[323369551,1713935439815,-1248.8,0.00016986,2]
[323369552,1713935439824,-500.84946283,0.00016986,2]
[323369553,1713935439834,-1015.49,0.00016986,2]
[323369554,1713935439843,-1101.25,0.00016986,2]
[323369555,1713935439852,-759.56,0.00016986,2]
[323369556,1713935439861,-502.15791498,0.00016986,2]
[323369557,1713935439871,-502.38191079,0.00016986,2]
[323369558,1713935439880,-500.0,0.00016986,2]
[323369559,1713935439890,-500.0,0.00016986,2]
[323369560,1713935439899,-500.0,0.00016986,2]
[323369561,1713935439908,-6087.38,0.00016986,2]
[323369562,1713935439917,-500.0,0.00016986,2]
[323369563,1713935439927,-866.2,0.00016986,2]
[323369564,1713935439936,-1123.53,0.00016986,2]
[323369565,1713935439945,-6024.2,0.00016986,2]
[323369566,1713935439955,-500.0,0.00016986,2]
[323369567,1713935439965,-504.45,0.00016986,2]
[323369568,1713935439973,-3154.71,0.00016986,2]
[323369569,1713935439983,-500.0,0.00016986,2]
[323369570,1713935439992,-4501.59,0.00016986,2]
[323369571,1713935440001,-500.0,0.00016986,2]
[323369572,1713935440011,-500.0,0.00016986,2]
[323369573,1713935440020,-1336.09,0.00016986,2]
[323369574,1713935440030,-500.0,0.00016986,2]
[323369575,1713935440040,-560.85,0.00016986,2]
[323369576,1713935440049,-798.31,0.00016986,2]
[323369577,1713935440059,-207.94363039,0.00016986,2]
[323369578,1713935440068,-608.62,0.00016986,2]
[323369579,1713935440078,-1237.7,0.00016986,2]
[323369580,1713935440087,-1074.61,0.00016986,2]
[323369581,1713935440096,-500.0,0.00016986,2]
[323369582,1713935440106,-2094.64,0.00016986,2]
[323369583,1713935440115,-588.55,0.00016986,2]
[323369584,1713935440124,-699.38,0.00016986,2]
[323369586,1713935440133,-1620.5,0.00016986,2]
[323369588,1713935440142,-802.81,0.00016986,2]
[323369590,1713935440151,-500.0,0.00016986,2]
[323369592,1713935440160,-656.61,0.00016986,2]
[323369594,1713935440169,-576.65,0.00016986,2]
[323369596,1713935440179,-320.52449047,0.00016986,2]
[323369598,1713935440188,-628.54949811,0.00016986,2]
[323369600,1713935440197,-500.0,0.00016986,2]
[323369602,1713935440205,-500.0,0.00016986,2]
[323369604,1713935440217,-14169.9,0.00016986,2]
[323369606,1713935440229,-2161.53,0.00016986,2]
[323369608,1713935440238,-575.25,0.00016986,2]
[323369610,1713935440249,-500.0,0.00016986,2]
[323369612,1713935440258,-556.25,0.00016986,2]